bitfinex-derivatives/quotes_BNBF0:USTF0_20230830
["timestamp","ask_amount","ask_price","bid_price","bid_amount"]
[1693414688588,0.0732072,222.46,222.19,0.8264831]
[1693414688790,0.0732072,222.46,222.1,0.0735369]
[1693414688988,0.0732072,222.47,222.11,0.826454]
[1693414690497,0.0732072,222.48,222.11,0.826454]
[1693414692998,0.0732072,222.48,222.12,0.826454]
[1693414693203,0.0732072,222.48,222.1,0.826454]
[1693414693403,0.0732072,222.52,222.13,0.0735369]
[1693414693603,0.0732072,222.52,222.14,0.8999909]
[1693414693803,0.0732072,222.53,222.15,0.826454]
[1693414694303,0.0732072,222.54,222.16,0.826454]
[1693414694605,0.0732072,222.53,222.17,0.826454]
[1693414694795,0.0732072,222.53,221.89,0.9804921]
[1693414694796,0.0732072,222.54,222.18,0.826454]
[1693414695001,0.0732072,222.54,222.19,0.826454]
[1693414695199,0.0732072,222.54,222.13,0.826454]
[1693414695400,0.0732072,222.54,222.14,0.826454]
[1693414695604,0.0732072,222.54,222.13,0.826454]
[1693414695803,0.0732072,222.56,222.13,0.826454]
[1693414696200,0.0732072,222.56,222.13,0.8999909]
[1693414696502,0.0732072,222.56,222.14,0.826454]
[1693414696904,0.0732072,222.57,222.14,0.826454]
[1693414697198,0.0732072,222.57,222.15,0.826454]
[1693414697402,0.0732072,222.57,222.13,0.826454]
[1693414697603,0.0732072,222.57,222.14,0.826454]
[1693414697801,0.0732072,222.57,222.15,0.826454]
[1693414698002,0.0732072,222.57,222.16,0.826454]
[1693414698304,0.0732072,222.57,222.17,0.826454]
[1693414698604,0.0732072,222.57,222.18,0.826454]
[1693414698804,0.0732072,222.58,222.12,0.826454]
[1693414699104,0.0732072,222.58,222.13,0.826454]
[1693414699297,0.0732072,222.58,222.14,0.826454]
[1693414699497,0.0732072,222.58,222.11,0.0735369]
[1693414699498,0.0732072,222.58,222.15,0.826454]
[1693414699696,0.0732072,222.58,222.16,0.826454]
[1693414699901,0.0732072,222.58,222.11,0.8999909]
[1693414700101,0.0732072,222.58,222.12,0.826454]
[1693414700299,0.0732072,222.58,222.11,0.826454]
[1693414700503,0.0732072,222.58,222.12,0.826454]
[1693414700703,0.0732072,222.58,222.13,0.826454]
[1693414701001,0.0732072,222.58,222.14,0.826454]
[1693414701301,0.0732072,222.58,222.1,0.0735369]
[1693414701302,0.0732072,222.58,222.15,0.826454]
[1693414701511,0.0732072,222.58,222.11,0.826454]
[1693414701806,0.0732072,222.58,222.12,0.826454]
[1693414702011,0.0732072,222.58,222.11,0.826454]
[1693414702205,0.0732072,222.58,222.12,0.826454]
[1693414702402,0.0732072,222.58,222.13,0.826454]
[1693414702605,0.0732072,222.58,222.14,0.826454]
[1693414702804,0.0732072,222.58,222.11,0.826454]
[1693414703005,0.0732072,222.58,222.12,0.826454]
[1693414703303,0.0732072,222.58,222.1,0.0735369]
[1693414703304,0.0732072,222.58,222.13,0.826454]
[1693414703500,0.0732072,222.58,222.11,0.8999909]
[1693414703705,0.0732072,222.58,222.12,0.826454]
[1693414703907,0.0732072,222.58,222.13,0.826454]
[1693414704206,0.0732072,222.57,222.14,0.826454]
[1693414704399,0.0732072,222.57,222.15,0.826454]
[1693414704604,0.0732072,222.57,222.16,0.826454]
[1693414704804,0.0732072,222.57,222.12,0.826454]
[1693414705001,0.0732072,222.57,222.13,0.826454]
[1693414705207,0.0732072,222.57,222.12,0.826454]
[1693414705399,0.0732072,222.57,222.13,0.826454]
[1693414705706,0.0732072,222.57,222.14,0.826454]
[1693414705907,0.0732072,222.57,222.04,0.14707381]
[1693414705908,0.0732072,222.56,222.15,0.826454]
[1693414706105,0.0732072,222.56,222.16,0.826454]
[1693414706305,0.0732072,222.56,222.17,0.826454]
[1693414706506,0.0732072,222.56,222.18,0.826454]
[1693414706706,0.0732072,222.56,222.12,0.826454]
[1693414707007,0.0732072,222.55,222.13,0.826454]
[1693414707208,0.0732072,222.55,222.12,0.826454]
[1693414707504,0.0732072,222.55,222.13,0.826454]
[1693414707706,0.0732072,222.55,222.05,0.14707381]
[1693414707707,0.0732072,222.55,222.12,0.8999909]
[1693414707903,0.0732072,222.55,222.13,0.826454]
[1693414708305,0.0732072,222.55,222.13,0.8999909]
[1693414708508,0.0732072,222.55,222.14,0.826454]
[1693414709008,0.0732072,222.54,222.14,0.826454]
[1693414709408,0.0732072,222.54,222.14,0.8999909]
[1693414709710,0.0732072,222.54,222.15,0.826454]
[1693414710009,0.0732072,222.53,222.16,0.826454]
[1693414710812,0.0732072,222.53,222.15,0.826454]
[1693414711013,0.0732072,222.53,222.16,0.826454]
[1693414711206,0.0732072,222.5,222.16,0.826454]
[1693414711411,0.0732072,222.49,222.12,0.826454]
[1693414711612,0.0732072,222.48,222.13,0.826454]
[1693414711812,0.0732072,222.48,222.14,0.826454]
[1693414712011,0.0732072,222.47,222.15,0.826454]
[1693414712211,0.0732072,222.47,222.16,0.826454]
[1693414712407,0.0732072,222.47,222.12,0.826454]
[1693414712611,0.0732072,222.47,222.13,0.826454]
[1693414712811,0.0732072,222.47,222.12,0.826454]
[1693414713012,0.0732072,222.47,222.13,0.826454]
[1693414713314,0.0732072,222.47,222.14,0.826454]
[1693414713613,0.0732072,222.47,222.15,0.826454]
[1693414713814,0.0732072,222.47,222.16,0.826454]
[1693414714006,0.0732072,222.47,222.17,0.826454]
[1693414714212,0.0732072,222.47,222.18,0.826454]
[1693414714412,0.0732072,222.47,222.13,0.826454]
[1693414714612,0.0732072,222.47,222.14,0.826454]
[1693414714814,0.0732072,222.47,222.13,0.826454]
[1693414715116,0.0732072,222.47,222.14,0.826454]
[1693414715418,0.0732072,222.47,222.15,0.826454]
[1693414715619,0.0732072,222.47,222.16,0.826454]
[1693414715816,0.0732072,222.47,222.13,0.0735369]
[1693414715817,0.0732072,222.47,222.17,0.826454]
[1693414716013,0.0732072,222.47,222.18,0.826454]
[1693414716216,0.0732072,222.47,222.14,0.826454]
[1693414716416,0.0732072,222.47,222.15,0.826454]
[1693414716720,0.0732072,222.47,222.16,0.826454]
[1693414716911,0.0732072,222.47,222.14,0.826454]
[1693414717117,0.0732072,222.47,222.15,0.826454]
[1693414717317,0.0732072,222.47,222.14,0.826454]
[1693414717519,0.0732072,222.47,222.16,0.826454]
[1693414717922,0.0732072,222.47,222.17,0.826454]
[1693414718120,0.0732072,222.47,222.18,0.826454]
[1693414718322,0.0732072,222.47,222.14,0.826454]
[1693414718523,0.0732072,222.47,222.15,0.826454]
[1693414718822,0.0732072,222.47,222.13,0.0735369]
[1693414718823,0.0732072,222.47,222.16,0.826454]
[1693414719017,0.0732072,222.47,222.14,0.826454]
[1693414719214,0.0732072,222.47,222.15,0.826454]
[1693414719420,0.0732072,222.47,222.14,0.826454]
[1693414719621,0.0732072,222.47,222.15,0.826454]
[1693414719819,0.0732072,222.46,222.16,0.826454]
[1693414720022,0.0732072,222.47,222.14,0.8999909]
[1693414720224,0.0732072,222.46,222.15,0.826454]
[1693414720423,0.0732072,222.46,222.16,0.826454]
[1693414720623,0.0732072,222.46,222.17,0.826454]
[1693414720924,0.0732072,222.46,222.18,0.826454]
[1693414721223,0.0732072,222.46,222.19,0.826454]
[1693414721425,0.0732072,222.46,222.2,0.826454]
[1693414721626,0.0732072,222.46,222.21,0.826454]
[1693414721927,0.0732072,222.46,222.14,0.0735369]
[1693414722228,0.0732072,222.46,222.15,0.82642319]
[1693414724920,0.0732072,222.45,222.15,0.82642319]
[1693414725128,0.0732072,222.46,222.15,0.82642319]
[1693414726031,0.0732072,222.45,222.15,0.82642319]
[1693414731638,0.0732072,222.45,222.16,0.82642319]
[1693414731837,0.0732072,222.45,222.14,0.82642319]
[1693414732037,0.0732072,222.45,222.15,0.82642319]
[1693414732238,0.0732072,222.45,222.14,0.82642319]
[1693414732439,0.0732072,222.45,222.15,0.82642319]
[1693414732634,0.0732072,222.45,222.16,0.82642319]
[1693414732839,0.0732072,222.45,222.14,0.82642319]
[1693414733138,0.0732072,222.45,222.15,0.82642319]
[1693414733339,0.0732072,222.45,222.16,0.82642319]
[1693414733638,0.0732072,222.45,222.17,0.82642319]
[1693414733835,0.0732072,222.45,222.13,0.0735369]
[1693414733836,0.0732072,222.44,222.18,0.82642319]
[1693414734039,0.0732072,222.44,222.15,0.82642319]
[1693414734234,0.0732072,222.44,222.16,0.82642319]
[1693414734442,0.0732072,222.44,222.17,0.82642319]
[1693414734640,0.0732072,222.44,222.15,0.82642319]
[1693414734835,0.0732072,222.44,222.16,0.82642319]
[1693414735141,0.0732072,222.44,222.17,0.82642319]
[1693414735441,0.0732072,222.44,222.18,0.82642319]
[1693414735640,0.0732072,222.44,222.19,0.82642319]
[1693414735834,0.0732072,222.44,222.15,0.82642319]
[1693414736143,0.0732072,222.44,222.16,0.82642319]
[1693414736343,0.0732072,222.44,222.15,0.82642319]
[1693414736543,0.0732072,222.44,222.16,0.82642319]
[1693414736745,0.0732072,222.44,222.17,0.82642319]
[1693414736948,0.0732072,222.44,222.15,0.82642319]
[1693414737139,0.0732072,222.44,222.16,0.82642319]
[1693414737340,0.0732072,222.44,222.17,0.82642319]
[1693414737540,0.0732072,222.44,222.18,0.82642319]
[1693414737745,0.0732072,222.44,222.19,0.82642319]
[1693414737945,0.0732072,222.44,222.2,0.82642319]
[1693414738246,0.0732072,222.44,222.14,0.0735369]
[1693414738446,0.0732072,222.44,222.15,0.8264426]
[1693414738748,0.0732072,222.44,222.15,0.8999795]
[1693414739045,0.0732072,222.44,222.16,0.8264426]
[1693414740748,0.0732072,222.43,222.16,0.8999795]
[1693414740947,0.0732072,222.43,222.17,0.8264426]
[1693414741741,0.0732072,222.43,222.18,0.8264426]
[1693414741942,0.0732072,222.43,222.19,0.8264426]
[1693414742145,0.0732072,222.43,222.2,0.8264426]
[1693414742345,0.0732072,222.43,222.16,0.0735369]
[1693414742652,0.0732072,222.43,222.17,0.82642888]
[1693414743948,0.0732072,222.42,222.17,0.89996578]
[1693414744143,0.0732072,222.42,222.18,0.82642888]
[1693414744747,0.0732072,222.41,222.18,0.82642888]
[1693414746050,0.97609607,222.49,222.18,0.82642888]
[1693414746051,0.0732072,222.4,222.19,0.0735369]
[1693414746250,0.0732072,222.4,222.2,0.82642888]
[1693414752259,0.0732072,222.39,222.2,0.82642888]
[1693414752562,0.0732072,222.39,222.18,0.0735369]
[1693414752760,0.0732072,222.39,222.19,0.82646192]
[1693414758865,0.0732072,222.39,222.17,0.0735369]
[1693414759064,0.0732072,222.39,222.18,0.82645813]
[1693414759761,0.0732072,222.39,222.18,0.89999503]
[1693414760064,0.0732072,222.39,222.19,0.82645813]
[1693414760766,0.0732072,222.39,222.18,0.89999503]
[1693414760967,0.0732072,222.39,222.19,0.82645357]
[1693414761673,0.0732072,222.39,222.18,0.82645357]
[1693414761868,0.0732072,222.39,222.17,0.0735369]
[1693414762068,0.0732072,222.39,222.18,0.82646293]
[1693414764871,0.0732072,222.39,222.16,0.0735369]
[1693414765074,0.0732072,222.39,222.17,0.82646045]
[1693414769776,0.0732072,222.4,222.17,0.82646045]
[1693414769976,0.0732072,222.4,222.17,0.89999735]
[1693414770174,0.0732072,222.4,222.18,0.82646045]
[1693414781083,0.0732072,222.4,222.18,0.89999735]
[1693414781280,0.0732072,222.4,222.19,0.82646045]
[1693414782278,0.0732072,222.4,222.18,0.89999735]
[1693414782483,0.0732072,222.4,222.19,0.82646045]
[1693414784386,0.0732072,222.41,222.19,0.82646045]
[1693414792394,0.14641441,222.43,222.19,0.82646045]
[1693414792395,0.0732072,222.4,222.19,0.82646045]
[1693414792596,0.0732072,222.4,222.18,0.82646045]
[1693414800400,0.0732072,222.4,222.18,0.89999735]
[1693414800598,0.0732072,222.4,222.19,0.82646045]
[1693414804400,0.0732072,222.4,222.17,0.0735369]
[1693414804604,0.0732072,222.4,222.18,0.89997165]
[1693414804805,0.0732072,222.4,222.19,0.82643475]
[1693414805105,0.0732072,222.46,222.24,0.0735369]
[1693414805313,0.0732072,222.49,222.25,0.82643475]
[1693414805512,0.0732072,222.49,222.24,0.82643475]
[1693414805708,0.0732072,222.49,222.25,0.82643475]
[1693414805912,0.0732072,222.49,222.24,0.82643475]
[1693414806112,0.0732072,222.49,222.25,0.82643475]
[1693414806312,0.0732072,222.5,222.24,0.82643475]
[1693414806510,0.0732072,222.51,222.25,0.82643475]
[1693414806710,0.0732072,222.51,222.26,0.82643475]
[1693414807014,0.0732072,222.51,222.27,0.82643475]
[1693414807211,0.0732072,222.51,222.22,0.0735369]
[1693414807413,0.0732072,222.51,222.23,0.82612999]
[1693414807618,0.0732072,222.51,222.22,0.82612999]
[1693414807916,0.0732072,222.51,222.23,0.82612999]
[1693414808110,0.0732072,222.51,222.22,0.82612999]
[1693414808310,0.0732072,222.51,222.14,0.14707381]
[1693414808311,0.0732072,222.52,222.23,0.82612999]
[1693414808510,0.0732072,222.52,222.24,0.82612999]
[1693414808710,0.0732072,222.52,222.25,0.82612999]
[1693414809115,0.0732072,222.52,222.26,0.82612999]
[1693414809310,0.0732072,222.52,222.27,0.82612999]
[1693414809514,0.0732072,222.53,222.19,0.0735369]
[1693414809710,0.0732072,222.53,222.2,0.82614517]
[1693414811512,0.0732072,222.54,222.2,0.82614517]
[1693414812013,0.0732072,222.54,222.21,0.82614517]
[1693414812216,0.0732072,222.53,222.19,0.82614517]
[1693414812418,0.0732072,222.54,222.2,0.82614517]
[1693414812716,0.0732072,222.54,222.21,0.82614517]
[1693414812917,0.0732072,222.54,222.22,0.82614517]
[1693414813118,0.0732072,222.54,222.23,0.82614517]
[1693414813320,0.0732072,222.54,222.24,0.82614517]
[1693414813521,0.0732072,222.54,222.19,0.82614517]
[1693414813814,0.0732072,222.54,222.2,0.82614517]
[1693414814021,0.0732072,222.54,222.19,0.82614517]
[1693414814217,0.0732072,222.54,222.2,0.82614517]
[1693414814418,0.0732072,222.54,222.19,0.82614517]
[1693414814621,0.0732072,222.54,222.2,0.82614517]
[1693414814821,0.0732072,222.54,222.21,0.82614517]
[1693414815124,0.0732072,222.54,222.22,0.82614517]
[1693414815325,0.0732072,222.54,222.19,0.82614517]
[1693414815528,0.0732072,222.54,222.2,0.82614517]
[1693414815721,0.0732072,222.54,222.18,0.82614517]
[1693414815918,0.0732072,222.54,222.19,0.82614517]
[1693414816119,0.0732072,222.54,222.18,0.82614517]
[1693414816320,0.0732072,222.54,222.19,0.82614517]
[1693414816520,0.0732072,222.55,222.2,0.82614517]
[1693414816724,0.0732072,222.55,222.21,0.82614517]
[1693414816924,0.0732072,222.55,222.18,0.82614517]
[1693414817124,0.0732072,222.55,222.19,0.82614517]
[1693414817327,0.0732072,222.55,222.18,0.82614517]
[1693414817626,0.0732072,222.55,222.19,0.82614517]
[1693414817826,0.0732072,222.54,222.18,0.82614517]
[1693414818026,0.0732072,222.54,222.19,0.82614517]
[1693414818225,0.0732072,222.54,222.18,0.82614517]
[1693414818423,0.0732072,222.55,222.19,0.82614517]
[1693414818623,0.0732072,222.55,222.18,0.82614517]
[1693414818827,0.0732072,222.55,222.19,0.82614517]
[1693414819026,0.0732072,222.55,222.18,0.82614517]
[1693414819227,0.0732072,222.55,222.19,0.82614517]
[1693414819422,0.0732072,222.55,222.18,0.82614517]
[1693414819621,0.0732072,222.55,222.19,0.82614517]
[1693414819819,0.0732072,222.55,222.2,0.82614517]
[1693414820022,0.0732072,222.55,222.17,0.0735369]
[1693414820023,0.0732072,222.55,222.21,0.82614517]
[1693414820224,0.0732072,222.55,222.18,0.82614517]
[1693414820426,0.0732072,222.55,222.19,0.82614517]
[1693414820626,0.0732072,222.55,222.17,0.82614517]
[1693414820827,0.0732072,222.55,222.18,0.82614517]
[1693414827535,0.0732072,222.55,222.18,0.89968207]
[1693414827735,0.0732072,222.55,222.19,0.82614517]
[1693414829537,0.0732072,222.54,222.19,0.82614517]
[1693414830540,0.0732072,222.54,222.19,0.89968207]
[1693414830740,0.0732072,222.54,222.12,0.14707381]
[1693414830741,0.0732072,222.54,222.2,0.82614517]
[1693414830940,0.0732072,222.54,222.21,0.82614517]
[1693414831141,0.0732072,222.54,222.22,0.82614517]
[1693414831344,0.0732072,222.54,222.19,0.89968207]
[1693414831642,0.0732072,222.53,222.2,0.82614517]
[1693414832643,0.0732072,222.52,222.2,0.82614517]
[1693414834549,0.0732072,222.51,222.2,0.89968207]
[1693414834847,0.0732072,222.51,222.21,0.82614517]
[1693414836950,0.0732072,222.5,222.21,0.89968207]
[1693414837250,0.0732072,222.5,222.22,0.82614517]
[1693414838446,0.0732072,222.49,222.22,0.89968207]
[1693414838648,0.0732072,222.49,222.23,0.82614517]
[1693414839250,0.0732072,222.46,222.25,0.0735369]
[1693414839451,0.0732072,222.46,222.26,0.82614517]
[1693414842153,0.0732072,222.46,222.26,0.89968207]
[1693414842354,0.0732072,222.46,222.27,0.82614517]
[1693414842550,0.0732072,222.46,222.26,0.82614517]
[1693414842847,0.0732072,222.46,222.27,0.82613847]
[1693414843150,0.0732072,222.46,222.25,0.0735369]
[1693414843352,0.0732072,222.46,222.26,0.82614061]
[1693414846556,0.0732072,222.42,222.21,0.0735369]
[1693414846853,0.0732072,222.41,222.2,0.0735369]
[1693414847053,0.0732072,222.41,222.21,0.82638978]
[1693414847451,0.0732072,222.43,222.21,0.82638978]
[1693414847652,0.0732072,222.43,222.18,0.0735369]
[1693414847852,0.0732072,222.42,222.19,0.82639916]
[1693414848347,0.0732072,222.42,221.93,0.9804921]
[1693414848348,0.0732072,222.43,222.18,0.82639916]
[1693414848553,0.0732072,222.43,222.19,0.82639916]
[1693414848747,0.0732072,222.43,222.16,0.82639916]
[1693414849052,0.0732072,222.43,222.17,0.82639916]
[1693414849352,0.0732072,222.43,222.18,0.82639916]
[1693414849554,0.0732072,222.44,222.16,0.82639916]
[1693414849751,0.0732072,222.44,222.17,0.82639916]
[1693414849952,0.0732072,222.44,222.15,0.82639916]
[1693414850155,0.0732072,222.44,222.16,0.82639916]
[1693414850354,0.0732072,222.44,222.15,0.82639916]
[1693414850662,0.0732072,222.44,222.16,0.82639916]
[1693414850853,0.0732072,222.44,222.14,0.82639916]
[1693414851050,0.0732072,222.44,222.15,0.82639916]
[1693414851450,0.0732072,222.45,222.15,0.82639916]
[1693414851651,0.0732072,222.45,222.16,0.82639916]
[1693414851849,0.0732072,222.45,222.17,0.82639916]
[1693414852052,0.0732072,222.45,222.14,0.82639916]
[1693414852256,0.0732072,222.45,222.15,0.82639916]
[1693414852456,0.0732072,222.45,222.16,0.82639916]
[1693414852657,0.0732072,222.45,222.17,0.82639916]
[1693414852855,0.0732072,222.45,222.13,0.82639916]
[1693414853052,0.0732072,222.45,222.12,0.0735369]
[1693414853053,0.0732072,222.45,222.14,0.82639916]
[1693414853248,0.0732072,222.45,222.15,0.82639916]
[1693414853454,0.0732072,222.45,222.16,0.82639916]
[1693414853654,0.0732072,222.45,222.12,0.0735369]
[1693414853655,0.0732072,222.45,222.17,0.82639916]
[1693414853957,0.0732072,222.45,222.18,0.82639916]
[1693414854160,0.0732072,222.45,222.19,0.82639916]
[1693414854357,0.14641441,222.48,222.12,0.0735369]
[1693414854358,0.0732072,222.46,222.12,0.0735369]
[1693414854657,0.0732072,222.46,222.13,0.82644836]
[1693414855556,0.0732072,222.46,222.12,0.82644836]
[1693414855758,0.0732072,222.46,222.13,0.82644836]
[1693414856057,0.0732072,222.46,222.14,0.82644836]
[1693414856261,0.0732072,222.46,222.12,0.82644836]
[1693414856453,0.0732072,222.47,222.13,0.82644836]
[1693414856657,0.0732072,222.47,222.11,0.0735369]
[1693414856658,0.0732072,222.47,222.14,0.82644836]
[1693414856958,0.0732072,222.47,222.15,0.82644836]
[1693414857159,0.0732072,222.47,222.12,0.82644836]
[1693414857358,0.0732072,222.47,222.13,0.82644836]
[1693414857559,0.0732072,222.47,222.14,0.82644836]
[1693414857759,0.0732072,222.47,222.11,0.82644836]
[1693414857958,0.0732072,222.47,222.12,0.82644836]
[1693414858159,0.0732072,222.47,222.13,0.82644836]
[1693414858460,0.0732072,222.47,222.14,0.82644836]
[1693414858758,0.0732072,222.47,222.1,0.0735369]
[1693414858759,0.0732072,222.47,222.15,0.82644836]
[1693414858956,0.0732072,222.47,222.16,0.82644836]
[1693414859163,0.0732072,222.47,222.17,0.82644836]
[1693414859361,0.0732072,222.47,222.18,0.82644836]
[1693414859559,0.0732072,222.47,222.11,0.82644836]
[1693414859761,0.0732072,222.47,222.12,0.82644836]
[1693414859962,0.0732072,222.47,222.13,0.82644836]
[1693414860163,0.0732072,222.47,222.14,0.82644836]
[1693414860361,0.0732072,222.47,222.11,0.82644836]
[1693414860557,0.0732072,222.47,222.12,0.82644836]
[1693414860762,0.0732072,222.47,222.13,0.82644836]
[1693414861062,0.0732072,222.47,222.14,0.82644836]
[1693414861262,0.0732072,222.47,222.15,0.82644836]
[1693414861459,0.0732072,222.47,222.16,0.82644836]
[1693414861663,0.0732072,222.47,222.11,0.82644836]
[1693414861868,0.0732072,222.47,222.12,0.82644836]
[1693414862067,0.0732072,222.47,222.13,0.82644836]
[1693414862263,0.0732072,222.47,222.11,0.82644836]
[1693414862467,0.0732072,222.48,222.12,0.82644836]
[1693414862664,0.0732072,222.48,222.11,0.82644836]
[1693414862862,0.0732072,222.48,222.12,0.82644836]
[1693414863168,0.0732072,222.48,222.13,0.82644836]
[1693414863366,0.0732072,222.48,222.14,0.82644836]
[1693414863560,0.0732072,222.48,222.15,0.82644836]
[1693414863760,0.0732072,222.48,222.16,0.82644836]
[1693414863965,0.0732072,222.48,222.17,0.82644836]
[1693414864163,0.0732072,222.48,222.18,0.82644836]
[1693414864365,0.0732072,222.48,222.19,0.82644836]
[1693414864563,0.0732072,222.48,222.1,0.0735369]
[1693414864769,0.0732072,222.48,222.11,0.82644411]
[1693414869373,0.0732072,222.47,222.11,0.82644411]
[1693414872677,0.0732072,222.47,222.11,0.89998101]
[1693414872977,0.0732072,222.47,222.12,0.82644411]
[1693414874378,0.0732072,222.46,222.12,0.82644411]
[1693414875477,0.0732072,222.46,222.12,0.89998101]
[1693414875679,0.0732072,222.46,222.13,0.82644411]
[1693414876482,0.0732072,222.45,222.13,0.82644411]
[1693414877484,0.0732072,222.45,222.13,0.89998101]
[1693414877676,0.0732072,222.45,222.14,0.82644411]
[1693414878380,0.0732072,222.44,222.14,0.82644411]
[1693414879377,0.0732072,222.44,222.14,0.89998101]
[1693414879574,0.0732072,222.43,222.15,0.82644411]
[1693414880381,0.0732072,222.42,222.15,0.89998101]
[1693414880576,0.0732072,222.42,222.16,0.82644411]
[1693414881583,0.0732072,222.39,222.18,0.0735369]
[1693414881778,0.0732072,222.39,222.19,0.82644411]
[1693414884280,0.0732072,222.39,222.19,0.89998101]
[1693414884478,0.0732072,222.39,222.19,0.0735369]
[1693414885083,0.0732072,222.39,222.2,0.82642814]
[1693414885584,0.0732072,222.4,222.2,0.89996504]
[1693414885784,0.0732072,222.4,222.2,0.0735369]
[1693414885985,0.0732072,222.4,222.19,0.0735369]
[1693414886184,0.0732072,222.4,222.2,0.82639015]
[1693414891885,0.0732072,222.4,222.18,0.0735369]
[1693414892084,0.0732072,222.4,222.19,0.82641727]
[1693414893685,0.0732072,222.4,222.19,0.89995417]
[1693414893988,0.0732072,222.4,222.2,0.82641727]
[1693414894590,0.0732072,222.4,222.18,0.0735369]
[1693414894789,0.0732072,222.4,222.19,0.82641204]
[1693414894990,0.0732072,222.4,222.19,0.89994894]
[1693414895189,0.0732072,222.4,222.2,0.82641204]
[1693414898092,0.0732072,222.4,222.19,0.82641204]
[1693414901594,0.0732072,222.4,222.19,0.89994894]
[1693414901796,0.0732072,222.4,222.2,0.82641204]
[1693414906500,0.0732072,222.39,222.17,0.0735369]
[1693414906697,0.0732072,222.39,222.18,0.82645054]
[1693414912704,0.0732072,222.39,222.17,0.0735369]
[1693414912906,0.0732072,222.39,222.15,0.0735369]
[1693414913199,0.0732072,222.38,222.16,0.82650671]
[1693414913406,0.0732072,222.38,222.15,0.90004361]
[1693414913606,0.0732072,222.38,222.16,0.82650671]
[1693414914602,0.0732072,222.38,222.14,0.0735369]
[1693414914905,0.0732072,222.38,222.15,0.82651467]
[1693414916305,0.0732072,222.38,222.14,0.82651467]
[1693414916511,0.0732072,222.34,222.09,0.0735369]
[1693414916808,0.0732072,222.33,222.1,0.82673848]
[1693414917002,0.0732072,222.35,222.11,0.82673848]
[1693414917206,0.0732072,222.35,222.06,0.0735369]
[1693414917403,0.0732072,222.35,222.07,0.82674666]
[1693414918106,0.0732072,222.36,222.07,0.82674666]
[1693414918306,0.0732072,222.36,222.08,0.82674666]
[1693414918506,0.0732072,222.36,222.06,0.82674666]
[1693414918707,0.0732072,222.36,222.07,0.82674666]
[1693414919006,0.0732072,222.36,221.82,0.9804921]
[1693414919007,0.0732072,222.37,222.08,0.82674666]
[1693414919207,0.0732072,222.37,222.09,0.82674666]
[1693414919407,0.0732072,222.37,222.05,0.82674666]
[1693414919604,0.0732072,222.37,222.06,0.82674666]
[1693414919803,0.0732072,222.37,222.07,0.82674666]
[1693414920003,0.0732072,222.38,222.08,0.82674666]
[1693414920210,0.0732072,222.38,222.04,0.82674666]
[1693414920402,0.0732072,222.38,222.05,0.82674666]
[1693414920607,0.0732072,222.38,222.04,0.82674666]
[1693414920809,0.0732072,222.38,222.05,0.82674666]
[1693414921011,0.0732072,222.38,222.06,0.82674666]
[1693414921210,0.0732072,222.38,222.04,0.82674666]
[1693414921510,0.0732072,222.38,222.05,0.82674666]
[1693414921706,0.0732072,222.38,222.06,0.82674666]
[1693414921904,0.0732072,222.38,221.8,0.9804921]
[1693414922108,0.07324799,222.38,222.05,0.82674666]
[1693414922304,0.07324799,222.38,222.04,0.82674666]
[1693414922508,0.07324799,222.38,222.05,0.82674666]
[1693414922712,0.07324799,222.38,222.06,0.82674666]
[1693414922905,0.07324799,222.38,222.03,0.82674666]
[1693414923111,0.07324799,222.37,222.04,0.82674666]
[1693414923307,0.07324799,222.37,222.02,0.82674666]
[1693414923515,0.07324799,222.37,222.03,0.82674666]
[1693414923813,0.07324799,222.38,222.04,0.82674666]
[1693414924015,0.07324799,222.38,222.01,0.82674666]
[1693414924312,0.07324799,222.38,222.02,0.82674666]
[1693414924507,0.07324799,222.39,222.01,0.82674666]
[1693414925615,0.07324799,222.4,222.01,0.82674666]
[1693414926113,0.07324799,222.4,222.0,0.82674666]
[1693414926310,0.07324799,222.4,222.01,0.82674666]
[1693414926516,0.07324799,222.4,222.0,0.82674666]
[1693414926714,0.07324799,222.4,222.02,0.82674666]
[1693414927015,0.07324799,222.4,222.03,0.82674666]
[1693414927215,0.07324799,222.4,222.0,0.82674666]
[1693414927515,0.07324799,222.4,222.01,0.82674666]
[1693414927716,0.07324799,222.4,222.0,0.82674666]
[1693414927917,0.07324799,222.4,222.01,0.82674666]
[1693414928116,0.07324799,222.4,222.0,0.82674666]
[1693414928316,0.07324799,222.4,222.01,0.82674666]
[1693414928522,0.07324799,222.4,222.02,0.82674666]
[1693414928818,0.07324799,222.4,222.03,0.82674666]
[1693414929014,0.07324799,222.4,221.99,0.82674666]
[1693414929216,0.07324799,222.4,221.98,0.07352777]
[1693414929217,0.07324799,222.4,222.0,0.82674666]
[1693414929517,0.07324799,222.4,222.01,0.82674666]
[1693414929720,0.07324799,222.41,221.99,0.82674666]
[1693414933921,0.07324799,222.41,221.99,0.90027443]
[1693414934124,0.07324799,222.42,222.0,0.82674666]
[1693414934316,0.07324799,222.43,222.0,0.82674666]
[1693414934720,0.07324799,222.43,222.0,0.90027443]
[1693414934919,0.07324799,222.43,222.01,0.82674666]
[1693414935617,0.07324799,222.42,222.01,0.82674666]